bitfinex/quotes_SOLUSD_20250310
["timestamp","ask_amount","ask_price","bid_price","bid_amount"]
[1741603908546,0.03,127.72,127.71,46.36091603]
[1741603912264,0.03,127.72,127.68,46.36251603]
[1741603912462,38.56071603,127.72,127.67,47.93171603]
[1741603912664,46.39081603,127.72,127.66,46.36381603]
[1741603912866,38.53071603,127.7,127.65,46.36431603]
[1741603913346,38.53071603,127.69,127.64,38.53071603]
[1741603913554,38.53071603,127.68,127.63,46.42871603]
[1741603914060,38.53071603,127.69,127.64,38.53071603]
[1741603914268,38.53071603,127.69,127.63,7.898]
[1741603914445,38.53071603,127.69,127.64,38.53071603]
[1741603914648,87.6882,127.7,127.66,38.53071603]
[1741603914858,95.519,127.7,127.65,46.36461603]
[1741603915071,134.04971603,127.7,127.65,46.36461603]
[1741603915568,38.53071603,127.69,127.64,38.53071603]
[1741603915770,38.53071603,127.68,127.63,0.063]
[1741603916074,81.1,127.68,127.64,38.53071603]
[1741603916279,45.11891603,127.7,127.64,38.53071603]
[1741603916566,6.5882,127.7,127.66,38.53071603]
[1741603916748,6.5882,127.7,127.65,38.53071603]
[1741603917355,45.11891603,127.7,127.65,38.53071603]
[1741603917549,81.1,127.71,127.67,38.53071603]
[1741603918465,0.03,127.72,127.7,38.53071603]
[1741603918667,0.03,127.72,127.7,46.36111603]
[1741603919267,0.03,127.72,127.7,38.53071603]
[1741603919586,0.03,127.72,127.69,46.36191603]
[1741603920050,0.03,127.72,127.68,38.53071603]
[1741603920251,0.03,127.72,127.7,38.53071603]
[1741603920464,0.03,127.72,127.71,38.53071603]
[1741603920675,0.03,127.72,127.71,46.36091603]
[1741603922060,0.03,127.72,127.7,38.53071603]
[1741603923073,0.03,127.72,127.71,38.53071603]
[1741603923479,0.03,127.74,127.73,20.0]
[1741603923673,0.03,127.74,127.73,58.53071603]
[1741603924185,0.03,127.74,127.73,66.35971603]
[1741603925056,0.03,127.74,127.72,47.90141603]
[1741603925976,0.03,127.74,127.72,67.90141603]
[1741603926180,0.03,127.74,127.73,38.53071603]
[1741603928086,0.03,127.74,127.72,38.53071603]
[1741603929385,0.03,127.74,127.72,46.36031603]
[1741603929571,0.03,127.74,127.72,38.53071603]
[1741603929778,0.03,127.74,127.71,58.53071603]
[1741603929980,0.03,127.74,127.71,20.0]
[1741603930195,0.03,127.74,127.7,38.53071603]
[1741603930389,38.53071603,127.73,127.68,40.04281603]
[1741603930695,38.53071603,127.72,127.67,38.59371603]
[1741603930879,38.53071603,127.71,127.67,0.063]
[1741603931087,38.53071603,127.69,127.67,0.063]
[1741603931385,38.53071603,127.68,127.67,0.063]
[1741603932382,99.8,127.73,127.67,38.59371603]
[1741603932588,38.53071603,127.72,127.67,38.59371603]
[1741603933164,38.53071603,127.7,127.67,0.063]
[1741603933481,18.933972,127.71,127.67,0.063]
[1741603933681,38.53071603,127.68,127.67,0.063]
[1741603933896,64.02398803,127.68,127.67,0.063]
[1741603934069,102.55470406,127.68,127.67,0.063]
[1741603934387,71.85598803,127.68,127.67,0.063]
[1741603934765,64.02398803,127.68,127.67,0.063]
[1741603935291,6.5593,127.68,127.67,0.063]
[1741603935587,52.92201603,127.68,127.67,0.063]
[1741603935769,138.33071603,127.7,127.67,0.063]
[1741603936273,138.03071603,127.7,127.67,0.063]
[1741603936789,38.53071603,127.69,127.67,0.063]
[1741603937183,99.5,127.7,127.67,0.063]
[1741603937390,138.03071603,127.7,127.67,0.063]
[1741603937565,99.5,127.7,127.67,0.063]
[1741603937885,25.20894886,127.72,127.67,38.59371603]
[1741603937886,87.6593,127.72,127.67,38.59371603]
[1741603938085,81.1,127.72,127.68,38.53071603]
[1741603938285,0.03,127.74,127.7,7.8308]
[1741603938689,0.03,127.74,127.7,46.36151603]
[1741603939602,0.03,127.74,127.72,38.53071603]
[1741603939793,0.03,127.74,127.73,38.53071603]
[1741603940092,0.03,127.74,127.73,40.18991603]
[1741603940490,0.03,127.74,127.72,46.36011603]
[1741603940694,0.03,127.74,127.72,7.8294]
[1741603941187,0.03,127.74,127.72,46.36011603]
[1741603941570,0.03,127.74,127.71,20.0]
[1741603941873,0.03,127.74,127.71,38.53071603]
[1741603942280,0.03,127.74,127.72,38.53071603]
[1741603942479,0.03,127.74,127.7,27.4079]
[1741603942666,0.03,127.74,127.73,38.53071603]
[1741603944272,0.03,127.74,127.72,46.36011603]
[1741603944471,0.03,127.74,127.71,46.36091603]
[1741603945397,0.03,127.74,127.7,46.36131603]
[1741603945898,38.56071603,127.74,127.69,48.02101603]
[1741603946097,0.03,127.74,127.7,38.53071603]
[1741603946398,0.03,127.74,127.72,38.53071603]
[1741603947600,0.03,127.74,127.73,38.53071603]
[1741603948477,0.03,127.74,127.73,46.35971603]
[1741603949787,0.03,127.75,127.73,46.35971603]
[1741603949985,0.03,127.75,127.74,38.53071603]
[1741603950705,0.03,127.75,127.74,46.35911603]
[1741603952296,0.03,127.75,127.74,7.8284]
[1741603953205,0.03,127.75,127.74,46.35911603]
[1741603953401,0.03,127.75,127.74,84.88983206]
[1741603953788,0.03,127.75,127.74,46.35911603]
[1741603954498,0.03,127.77,127.76,38.53071603]
[1741603955007,0.0001,127.79,127.76,38.53071603]
[1741603955205,0.0001,127.79,127.78,38.53071603]
[1741603956208,0.0001,127.79,127.78,57.46468803]
[1741603957196,0.0001,127.79,127.78,65.29058803]
[1741603958386,0.0001,127.79,127.78,46.35661603]
[1741603958905,0.0001,127.79,127.78,58.53071603]
[1741603959314,0.0001,127.79,127.78,66.35661603]
[1741603959503,0.0001,127.79,127.78,85.29058803]
[1741603960711,0.0001,127.79,127.78,66.35661603]
[1741603960912,0.0001,127.79,127.78,20.0]
[1741603961213,0.0001,127.79,127.78,58.53071603]
[1741603961396,0.0001,127.79,127.77,58.53071603]
[1741603961708,0.0001,127.79,127.77,38.53071603]
[1741603962029,0.0001,127.79,127.77,46.35721603]
[1741603962508,0.0001,127.79,127.78,38.53071603]
[1741603963302,0.0001,127.79,127.78,65.29058803]
[1741603963500,0.0001,127.79,127.78,103.82130406]
[1741603963701,0.03,127.82,127.8,38.79181043]
[1741603963903,0.03,127.82,127.81,38.53071603]
[1741603964688,0.03,127.82,127.8,58.53071603]
[1741603965415,0.03,127.82,127.8,20.0]
[1741603965595,0.03,127.82,127.8,38.53071603]
[1741603965992,0.03,127.82,127.78,38.53071603]
[1741603966821,38.56071603,127.82,127.76,46.35781603]
[1741603967017,38.53071603,127.81,127.76,46.35781603]
[1741603967208,0.03,127.82,127.76,46.35781603]
[1741603967409,38.56071603,127.82,127.76,46.35781603]
[1741603967610,38.56071603,127.82,127.77,38.53071603]
[1741603968016,46.38431603,127.82,127.76,46.35781603]
[1741603969411,38.53071603,127.81,127.76,46.35781603]
[1741603970026,46.38431603,127.82,127.76,46.35781603]
[1741603970323,0.03,127.82,127.78,46.35661603]
[1741603970622,0.03,127.82,127.81,38.53071603]
[1741603972221,0.03,127.82,127.81,40.11371603]
[1741603972534,0.03,127.85,127.84,20.0]
[1741603972829,0.03,127.85,127.84,58.53071603]
[1741603973029,0.03,127.85,127.83,38.53071603]
[1741603973218,0.03,127.85,127.82,38.53071603]
[1741603973618,0.03,127.85,127.81,28.9673]
[1741603973801,0.03,127.85,127.82,38.53071603]
[1741603974208,0.03,127.85,127.81,46.35481603]
[1741603974413,0.03,127.85,127.81,7.8241]
[1741603974723,38.53071603,127.84,127.79,7.8253]
[1741603974902,38.56071603,127.85,127.8,38.53071603]
[1741603975109,0.03,127.85,127.8,38.53071603]
[1741603975305,0.03,127.85,127.83,38.53071603]
[1741603975732,0.03,127.85,127.81,38.53071603]
[1741603976616,0.03,127.85,127.82,7.8235]
[1741603976932,0.03,127.85,127.81,46.35451603]
[1741603977153,38.56071603,127.85,127.8,38.53071603]
[1741603977323,38.53071603,127.84,127.8,7.8245]
[1741603977628,0.03,127.85,127.81,38.53071603]
[1741603978330,0.03,127.85,127.82,38.53071603]
[1741603978541,0.03,127.85,127.82,46.35371603]
[1741603978743,0.03,127.85,127.83,38.53071603]
[1741603979056,0.03,127.85,127.84,38.53071603]
[1741603979523,0.03,127.85,127.82,27.3817]
[1741603979715,0.03,127.85,127.82,65.91241603]
[1741603979919,0.03,127.85,127.82,46.35371603]
[1741603980342,38.56071603,127.85,127.8,38.53071603]
[1741603980522,38.56071603,127.85,127.81,7.8241]
[1741603980839,46.38231603,127.85,127.81,7.8241]
[1741603981325,38.56071603,127.85,127.81,7.8241]
[1741603981659,46.38241603,127.85,127.8,46.35511603]
[1741603981952,38.53071603,127.81,127.77,7.8265]
[1741603982127,138.28036489,127.83,127.77,46.35721603]
[1741603982324,81.1,127.83,127.78,38.53071603]
[1741603982556,6.1871,127.84,127.8,38.53071603]
[1741603982858,52.54011603,127.84,127.78,38.53071603]
[1741603983056,44.71781603,127.84,127.79,38.53071603]
[1741603983261,52.54021603,127.84,127.78,38.53071603]
[1741603983428,38.53071603,127.81,127.76,0.063]
[1741603983623,38.53071603,127.79,127.76,0.063]
[1741603984042,14.0095,127.84,127.76,38.59371603]
[1741603984250,14.0095,127.84,127.8,38.53071603]
[1741603984251,6.1871,127.84,127.8,38.53071603]
[1741603984681,6.1871,127.84,127.81,7.8241]
[1741603984845,6.1871,127.84,127.79,46.35601603]
[1741603985026,38.53071603,127.83,127.78,7.8257]
[1741603985223,38.53071603,127.8,127.76,0.063]
[1741603985441,38.53071603,127.79,127.76,0.063]
[1741603985656,38.53071603,127.8,127.76,0.063]
[1741603985853,38.53071603,127.8,127.76,7.8901]
[1741603986258,38.53071603,127.81,127.76,46.42081603]
[1741603986456,95.1094,127.84,127.76,46.42081603]
[1741603986661,87.2871,127.84,127.79,7.8253]
[1741603986859,125.81781603,127.84,127.79,7.8253]
[1741603987261,38.53071603,127.83,127.79,7.8253]
[1741603987467,38.53071603,127.81,127.77,7.8265]
[1741603987649,38.53071603,127.8,127.77,7.8265]
[1741603987851,81.1,127.83,127.77,7.8265]
[1741603988063,38.53071603,127.82,127.77,7.8265]
[1741603988258,38.53071603,127.81,127.77,7.8265]
[1741603988457,38.53071603,127.81,127.76,38.59371603]
[1741603988458,38.53071603,127.8,127.76,7.8899]
[1741603988654,38.53071603,127.8,127.76,0.063]
[1741603988655,38.53071603,127.78,127.76,0.063]
[1741603989067,38.53071603,127.79,127.76,0.063]
[1741603989371,38.53071603,127.81,127.76,38.59371603]
[1741603989547,81.1,127.82,127.76,38.59371603]
[1741603989548,38.53071603,127.82,127.76,38.59371603]
[1741603989753,38.53071603,127.81,127.76,38.59371603]
[1741603989949,38.53071603,127.83,127.78,38.53071603]
[1741603990174,38.53071603,127.83,127.76,0.063]
[1741603990175,6.1871,127.84,127.79,38.53071603]
[1741603990669,38.53071603,127.83,127.77,38.53071603]
[1741603990856,38.53071603,127.82,127.78,7.8259]
[1741603991060,38.53071603,127.82,127.77,7.8265]
[1741603991260,38.53071603,127.82,127.77,46.35721603]
[1741603991461,38.53071603,127.83,127.77,46.35721603]
[1741603991656,38.53071603,127.82,127.77,46.35721603]
[1741603992161,38.53071603,127.82,127.77,7.8265]
[1741603992361,38.56071603,127.83,127.77,46.35721603]
[1741603992670,0.03,127.83,127.8,7.8247]
[1741603993174,0.03,127.83,127.81,38.53071603]
[1741603994979,0.03,127.83,127.82,46.35421603]
[1741603996375,0.03,127.85,127.84,20.0]
[1741603996578,0.03,127.85,127.84,58.53071603]
[1741603996775,0.03,127.88,127.85,1.5854]
[1741603996974,0.03,127.88,127.87,38.53071603]
[1741603997292,0.03,127.88,127.85,40.11611603]
[1741603997473,0.03,127.88,127.87,38.53071603]
[1741603997862,6.4157,127.94,127.87,38.53071603]
[1741603998059,119.63071603,127.95,127.89,38.53071603]
[1741603998270,0.03,127.96,127.9,38.53071603]
[1741603998586,38.53071603,127.94,127.88,38.53071603]
[1741603998774,38.53071603,127.94,127.86,27.51496157]
[1741603998968,38.53071603,127.94,127.88,38.53071603]
[1741603999173,0.03,127.96,127.89,38.53071603]
[1741603999366,0.03,127.96,127.93,38.53071603]
[1741603999549,0.03,127.96,127.92,38.53071603]
[1741604000555,0.03,127.96,127.9,58.53071603]
[1741604000751,0.03,127.96,127.86,65.90351603]
[1741604000752,38.53071603,127.94,127.89,38.53071603]
[1741604002263,38.53071603,127.93,127.88,40.12411603]
[1741604002470,38.53071603,127.91,127.86,46.35151603]
[1741604002788,38.53071603,127.92,127.86,46.35151603]
[1741604002962,38.53071603,127.91,127.86,38.53071603]
[1741604003382,7.8176,127.92,127.86,46.35161603]
[1741604003584,38.53071603,127.91,127.86,38.53071603]
[1741604004288,38.53071603,127.91,127.86,46.35151603]
[1741604004490,38.53071603,127.89,127.85,1.6479]
[1741604004861,38.53071603,127.9,127.85,48.00021603]
[1741604005187,46.34931603,127.9,127.85,40.17861603]
[1741604005878,46.34931603,127.9,127.85,48.00011603]
[1741604006183,46.34931603,127.9,127.85,1.6479]
[1741604006391,38.53071603,127.89,127.85,1.6479]
[1741604006590,38.53071603,127.88,127.85,0.063]
[1741604006766,38.53071603,127.87,127.85,0.063]
[1741604007083,38.53071603,127.88,127.85,0.063]
[1741604007673,38.53071603,127.87,127.85,0.063]
[1741604007865,38.53071603,127.86,127.85,0.063]
[1741604008065,38.53071603,127.87,127.85,0.063]
[1741604008265,38.53071603,127.88,127.85,0.063]
[1741604008871,38.53071603,127.87,127.85,0.063]
[1741604009384,46.35081603,127.88,127.85,0.063]
[1741604010495,38.53071603,127.86,127.85,0.063]
[1741604010668,46.35141603,127.87,127.85,0.063]
[1741604011587,38.53071603,127.86,127.85,0.063]
[1741604011885,38.53071603,127.88,127.85,0.063]
[1741604012087,119.63071603,127.89,127.85,0.063]
[1741604012481,46.35071603,127.88,127.85,0.063]
[1741604013090,38.53071603,127.87,127.85,0.063]
[1741604013890,38.53071603,127.86,127.85,0.063]
[1741604014601,7.8207,127.87,127.85,0.063]
[1741604014766,38.53071603,127.87,127.85,0.063]
[1741604016078,38.53071603,127.86,127.85,0.063]
[1741604016489,46.35171603,127.86,127.85,0.063]
[1741604017793,103.67424249,127.86,127.85,0.063]
[1741604018796,20.0,127.83,127.76,0.063]
[1741604018963,38.53071603,127.8,127.76,0.063]
[1741604019360,38.53071603,127.8,127.76,7.8898]
[1741604020281,38.53071603,127.81,127.76,46.42051603]
[1741604020489,38.53071603,127.82,127.77,38.53071603]
[1741604020664,38.53071603,127.82,127.78,7.8259]
[1741604021589,38.53071603,127.81,127.77,7.8265]
[1741604022289,38.53071603,127.82,127.77,46.35721603]
[1741604022494,27.8229,127.83,127.77,46.35721603]
[1741604022692,38.53071603,127.82,127.77,46.35721603]
[1741604023084,38.53071603,127.81,127.77,7.8265]
[1741604023486,38.53071603,127.82,127.77,7.8265]
[1741604023693,38.53071603,127.81,127.77,7.8265]
[1741604024103,38.53071603,127.82,127.77,7.8265]
[1741604024311,23.94996798,127.82,127.77,7.8265]
[1741604024902,23.94996798,127.82,127.77,31.77646798]
[1741604026810,23.94996798,127.82,127.77,7.8265]
[1741604027010,23.94996798,127.81,127.77,7.8265]
[1741604027707,23.94996798,127.82,127.77,7.8265]
[1741604027892,81.1,127.84,127.79,23.94996798]
[1741604028214,111.70446798,127.88,127.83,7.8228]
[1741604028385,105.04996798,127.88,127.83,31.77276798]
[1741604028585,23.94996798,127.88,127.83,31.77276798]
[1741604029010,31.76946798,127.89,127.83,31.77276798]
[1741604029209,23.94996798,127.88,127.83,31.77276798]
[1741604030525,31.76986798,127.88,127.83,31.77276798]
[1741604030680,31.76986798,127.88,127.83,23.94996798]
[1741604030885,23.94996798,127.87,127.82,7.8235]
[1741604031100,23.94996798,127.87,127.82,31.77346798]
[1741604031703,23.97996798,127.89,127.84,23.94996798]
[1741604032009,0.03,127.89,127.86,23.94996798]
[1741604032409,0.03,127.89,127.87,25.61346798]
[1741604032917,0.03,127.89,127.87,1.6635]
[1741604033703,0.03,127.89,127.87,25.61346798]
[1741604033901,0.03,127.89,127.88,23.94996798]
[1741604034108,0.03,127.89,127.88,31.76976798]
[1741604034620,0.03,127.94,127.88,31.91192955]
[1741604034814,0.03,127.94,127.92,23.94996798]
[1741604035211,0.03,127.94,127.91,23.94996798]
[1741604035405,0.03,127.94,127.93,25.50186798]
[1741604036099,0.03,127.94,127.93,33.31856798]
[1741604036302,0.03,127.94,127.93,47.57508928]
[1741604036526,0.03,127.94,127.93,9.3686]
[1741604036706,0.03,127.94,127.93,1.5519]
[1741604036903,0.03,127.94,127.93,47.57508928]
[1741604037116,0.03,127.94,127.93,1.5519]
[1741604038728,0.03,127.94,127.93,9.3686]
[1741604038932,0.03,127.94,127.93,1.5519]
[1741604039115,0.03,127.94,127.9,9.3264]
[1741604039315,0.03,127.94,127.9,47.53288928]
[1741604041036,0.03,127.94,127.9,9.3264]
[1741604041836,0.03,127.94,127.9,47.53288928]
[1741604042134,0.03,127.94,127.91,38.20648928]
[1741604042914,0.03,127.94,127.93,38.20648928]
[1741604043314,0.03,127.96,127.95,20.0]
[1741604043513,0.0001,127.96,127.95,58.34865085]
[1741604044021,0.0001,127.96,127.95,84.95596128]
[1741604044629,2.7578089,128.0,127.96,0.14216157]
[1741604044835,2.7578089,128.0,127.99,38.20648928]
[1741604045029,2.7578089,128.0,127.98,38.20648928]
[1741604045241,2.7578089,128.0,127.96,38.20648928]
[1741604045529,2.7578089,128.0,127.98,38.20648928]
[1741604046039,2.7578089,128.0,127.99,38.20648928]
[1741604046223,2.7578089,128.0,127.99,46.01958928]
[1741604046617,2.7578089,128.0,127.99,7.8131]
[1741604047032,2.7578089,128.0,127.99,46.01958928]
[1741604048359,0.03,128.07,128.02,26.2868]
[1741604048942,38.23648928,128.07,128.02,26.2868]
[1741604049161,0.03,128.07,128.02,26.2868]
[1741604049450,0.03,128.07,128.06,58.20648928]
[1741604049653,0.03,128.07,128.06,58.49081242]
[1741604049943,0.03,128.07,128.06,58.34865085]
[1741604050159,38.20648928,128.14,128.08,1.6389]
[1741604050321,6.1401,128.16,128.08,1.6389]
[1741604050322,38.20648928,128.17,128.12,38.20648928]
[1741604050522,20.0,128.17,128.11,38.20648928]
[1741604050738,58.20648928,128.17,128.11,38.20648928]
[1741604051235,81.1,128.23,128.13,20.14216157]
[1741604051433,81.1,128.23,128.16,38.20648928]
[1741604051626,38.20648928,128.22,128.16,38.20648928]
[1741604051935,38.49081242,128.22,128.14,20.0]
[1741604052144,38.20648928,128.16,128.08,21.1579]
[1741604052439,18.79181043,128.17,128.08,47.65278928]
[1741604052644,38.20648928,128.12,128.08,1.6389]
[1741604052827,18.79181043,128.13,128.04,0.14216157]
[1741604053025,38.20648928,128.09,128.04,0.14216157]
[1741604053326,38.20648928,128.09,128.04,38.20648928]
[1741604053648,0.14216157,128.12,128.04,38.20648928]
[1741604053828,118.09181043,128.13,128.06,38.20648928]
[1741604053829,99.89181043,128.13,128.06,38.20648928]
[1741604054146,38.20648928,128.08,128.03,47.60308928]
[1741604054321,0.03,128.07,128.03,47.60318928]
[1741604054521,0.03,128.07,128.05,38.20648928]
[1741604054722,0.03,128.07,128.04,38.20648928]
[1741604054937,0.03,128.07,128.03,9.53886157]
[1741604054938,0.03,128.07,128.05,38.20648928]
[1741604055344,0.03,128.07,128.04,38.20648928]
[1741604055551,0.03,128.07,128.03,47.60318928]
[1741604056355,0.03,128.07,128.03,39.79268928]
[1741604056527,0.03,128.07,128.03,67.60308928]
[1741604056727,0.03,128.07,128.03,59.79268928]
[1741604057029,0.03,128.07,127.98,65.59458928]
[1741604057236,38.20648928,128.05,128.0,38.20648928]
[1741604057434,38.23648928,128.07,128.01,38.20648928]
[1741604057757,38.20648928,128.06,128.01,38.20648928]
[1741604058053,0.03,128.07,128.01,38.20648928]
[1741604058358,38.20648928,128.06,128.01,38.20648928]
[1741604058534,38.20648928,128.06,128.01,46.01808928]
[1741604058740,38.23648928,128.07,128.01,46.01808928]
[1741604059044,38.23648928,128.07,128.02,38.20648928]
[1741604059229,0.03,128.07,128.03,38.20648928]
[1741604059429,0.03,128.07,128.04,38.20648928]
[1741604059831,0.03,128.07,128.05,38.20648928]
[1741604060532,0.03,128.07,128.05,46.01548928]
[1741604061174,0.03,128.07,128.05,7.809]
[1741604061358,0.03,128.07,128.05,46.01548928]
[1741604061556,0.03,128.07,128.06,38.34865085]
[1741604062876,0.03,128.07,128.06,46.01528928]
[1741604063464,38.20648928,128.13,128.06,65.67945085]
[1741604063665,7.8039,128.14,128.08,38.20648928]
[1741604063855,38.20648928,128.14,128.08,38.20648928]
[1741604064187,38.20648928,128.13,128.07,38.20648928]
[1741604064358,38.20648928,128.13,128.06,7.8088]
[1741604064687,38.20648928,128.11,128.06,46.01528928]
[1741604064983,38.20648928,128.1,128.06,7.8088]
[1741604065196,119.30648928,128.1,128.04,38.20648928]
[1741604065476,38.20648928,128.09,128.03,38.20648928]
[1741604065686,38.20648928,128.09,128.02,20.0]
[1741604065857,38.20648928,128.09,128.03,38.20648928]
[1741604066185,81.1,128.1,128.0,38.20648928]
[1741604066186,38.20648928,128.06,128.0,38.20648928]
[1741604066558,38.20648928,128.06,128.01,38.20648928]
[1741604066763,81.1,128.08,127.99,27.3458]
[1741604066764,38.20648928,128.05,128.0,38.20648928]
[1741604066962,38.20648928,128.04,127.99,46.01958928]
[1741604067472,38.20648928,128.03,127.99,7.8131]
[1741604067660,38.20648928,128.02,127.98,9.3912]
[1741604068068,38.20648928,128.03,127.98,9.3912]
[1741604068289,38.20648928,128.02,127.98,9.3912]
[1741604068955,81.1,128.05,127.99,38.20648928]
[1741604069159,81.1,128.05,128.0,38.20648928]
[1741604069799,119.30648928,128.05,127.98,28.9255]
[1741604069960,81.1,128.05,128.0,38.20648928]
[1741604070153,119.30648928,128.05,128.0,38.20648928]
[1741604070578,119.30648928,128.05,127.99,38.20648928]
[1741604070753,127.11608928,128.05,127.99,38.20648928]
[1741604071162,88.9096,128.05,128.0,7.8125]
[1741604071391,127.11608928,128.05,128.0,7.8125]
[1741604071558,38.20648928,128.04,128.0,7.8125]
[1741604071888,38.20648928,128.04,127.99,7.8131]
[1741604072254,88.9096,128.05,127.99,7.8131]
[1741604072451,119.30648928,128.05,128.0,38.20648928]
[1741604072678,38.20648928,128.04,127.99,7.8131]
[1741604073297,38.20648928,128.04,127.99,46.01958928]
[1741604073453,119.30648928,128.05,127.99,46.01958928]
[1741604073659,38.20648928,128.04,127.99,46.01958928]
[1741604073959,119.30648928,128.05,127.99,46.01958928]
[1741604074459,81.1,128.05,128.01,38.20648928]
[1741604075186,119.30648928,128.05,128.0,38.20648928]
[1741604075682,38.20648928,128.02,127.98,9.3912]
[1741604075987,38.20648928,128.01,127.96,7.8146]
[1741604076200,38.20648928,128.0,127.96,7.8146]
[1741604076782,38.20648928,128.01,127.96,7.8146]
[1741604076979,38.20648928,128.0,127.96,7.8146]
[1741604077374,56.85613814,128.01,127.96,7.8146]
[1741604077790,38.20648928,128.0,127.95,7.8152]
[1741604077988,38.20648928,127.99,127.95,7.8152]
[1741604078492,38.20648928,127.98,127.95,7.8152]
[1741604078689,38.20648928,127.99,127.95,7.8152]
[1741604078883,38.20648928,128.0,127.95,7.8152]
[1741604079187,38.20648928,128.0,127.95,46.02168928]
[1741604079390,18.64964886,128.01,127.95,46.02168928]
[1741604079391,56.85613814,128.01,127.96,0.063]
[1741604079565,38.20648928,128.0,127.96,0.063]
[1741604080572,38.20648928,127.97,127.96,0.063]
[1741604080883,0.14216157,127.98,127.96,0.063]
[1741604081081,18.64964886,127.99,127.96,0.063]
[1741604081082,56.99829971,127.97,127.96,0.063]
[1741604081278,56.85613814,127.97,127.96,0.063]
[1741604082191,137.50648928,127.99,127.96,0.063]
[1741604082391,99.3,127.99,127.96,0.063]
[1741604082891,38.20648928,128.0,127.96,0.063]
[1741604083294,137.95613814,128.01,127.96,0.063]
[1741604083990,99.74964886,128.01,127.96,38.26948928]
[1741604084298,38.20648928,128.02,127.97,38.20648928]
[1741604084597,38.20648928,128.03,127.97,38.20648928]
[1741604084979,38.20648928,128.03,127.98,38.20648928]
[1741604086195,119.30648928,128.04,127.99,38.20648928]
[1741604086996,81.1,128.04,128.01,38.20648928]
[1741604087308,38.20648928,128.06,128.02,7.8112]
[1741604087497,38.20648928,128.06,128.02,27.3393]
[1741604087699,137.95613814,128.07,128.02,27.3393]
[1741604088005,137.95613814,128.07,128.02,65.54578928]
[1741604088780,38.20648928,128.06,128.02,7.8112]
[1741604088974,18.64964886,128.04,127.99,38.20648928]
[1741604089180,56.85613814,128.04,128.0,7.8122]
[1741604090017,38.20648928,128.02,127.98,7.8135]
[1741604090307,18.64964886,128.04,127.98,46.01998928]
[1741604090504,38.20648928,128.03,127.98,46.01998928]
[1741604090716,38.20648928,128.03,127.98,65.55428928]
[1741604090883,38.20648928,128.03,127.98,46.01998928]
[1741604091081,38.20648928,128.02,127.98,7.8135]
[1741604091287,137.95613814,128.04,127.99,38.20648928]
[1741604091887,38.20648928,128.02,127.98,7.8135]
[1741604092287,137.95613814,128.04,127.98,46.01998928]
[1741604092496,38.20648928,128.03,127.98,7.8135]
[1741604092705,38.20648928,128.02,127.98,7.8135]
[1741604093097,38.20648928,128.02,127.98,7.8765]
[1741604093699,99.74964886,128.04,127.98,7.8765]
[1741604094002,38.20648928,128.03,127.98,7.8765]
[1741604094190,38.20648928,128.03,127.98,46.08298928]
[1741604094383,38.20648928,128.03,127.98,7.8765]
[1741604094709,99.74964886,128.04,127.99,38.20648928]
[1741604094883,137.95613814,128.04,127.99,38.20648928]
[1741604095213,81.1,128.04,128.0,38.20648928]
[1741604095416,81.1,128.04,128.01,38.20648928]
[1741604095618,81.1,128.04,127.99,46.01958928]
[1741604095791,119.30648928,128.04,127.99,46.01958928]
[1741604095993,119.30648928,128.04,127.99,7.8131]
[1741604096303,127.11648928,128.04,127.99,7.8131]
[1741604096511,38.20648928,128.02,127.98,7.8765]
[1741604096690,56.85613814,128.03,127.98,7.8765]
[1741604096890,18.64964886,128.03,127.99,38.20648928]
[1741604097303,81.1,128.04,128.0,46.01898928]
[1741604098403,81.1,128.04,128.01,38.20648928]
[1741604098785,81.1,128.04,128.0,65.55018928]
[1741604099012,38.20648928,128.06,128.0,46.01898928]
[1741604099209,119.30648928,128.07,128.01,38.20648928]
[1741604099385,127.11468928,128.07,128.02,7.811]
[1741604099585,119.30648928,128.07,128.02,7.811]
[1741604099804,81.1,128.07,128.03,38.20648928]
[1741604100003,75.05613814,128.09,128.03,38.20648928]
[1741604100382,81.24216157,128.1,128.04,38.20648928]
[1741604100590,38.20648928,128.08,128.03,38.20648928]